[Event "Titled Tuesday Blitz November 08 Early 2022"]
[White "Tohirjonova, Hulkar"]
[Black "Roque Sola, Gisela"]
[WhiteFideId "14202247"]
[BlackFideId "5120241"]
[WhiteElo "2144"]
[BlackElo "1961"]
[Result "0-1"]
[Round "08"]
[TimeControl "180+1"]
[Date "2022.11.09"]
[WhiteClock "0:00:34"]
[BlackClock "0:00:47"]

1. e4 {[%clk 0:02:59]}  c5 {[%clk 0:02:59]} 2. Nf3 {[%clk 0:02:59]}  Nc6 {[%clk 0:02:59]} 3. d4 {[%clk 0:02:59]}  cxd4 {[%clk 0:03:00]} 4. Nxd4 {[%clk 0:03:00]}  Nf6 {[%clk 0:03:00]} 5. Nc3 {[%clk 0:03:00]}  e5 {[%clk 0:03:00]} 6. Ndb5 {[%clk 0:02:59]}  d6 {[%clk 0:03:00]} 7. Bg5 {[%clk 0:02:59]}  a6 {[%clk 0:03:01]} 8. Na3 {[%clk 0:02:59]}  b5 {[%clk 0:03:01]} 9. Nd5 {[%clk 0:03:00]}  Be7 {[%clk 0:03:02]} 10. Bxf6 {[%clk 0:03:00]}  Bxf6 {[%clk 0:03:03]} 11. c4 {[%clk 0:03:00]}  b4 {[%clk 0:03:02]} 12. Nc2 {[%clk 0:03:00]}  O-O {[%clk 0:03:02]} 13. Ncxb4 {[%clk 0:02:56]}  Nxb4 {[%clk 0:03:01]} 14. Nxb4 {[%clk 0:02:56]}  Qb6 {[%clk 0:02:57]} 15. Qd2 {[%clk 0:02:51]}  Rb8 {[%clk 0:02:44]} 16. Nd3 {[%clk 0:02:18]}  Bb7 {[%clk 0:02:41]} 17. f3 {[%clk 0:02:11]}  Rfc8 {[%clk 0:02:23]} 18. b3 {[%clk 0:02:10]}  a5 {[%clk 0:02:20]} 19. g3 {[%clk 0:02:04]}  a4 {[%clk 0:02:20]} 20. Bh3 {[%clk 0:02:03]}  Rc7 {[%clk 0:02:12]} 21. Rb1 {[%clk 0:01:59]}  Rxc4 {[%clk 0:01:58]} 22. Nf2 {[%clk 0:01:49]}  Rd4 {[%clk 0:01:56]} 23. Qc2 {[%clk 0:01:41]}  Qb4+ {[%clk 0:01:46]} 24. Kf1 {[%clk 0:01:34]}  Ba6+ {[%clk 0:01:44]} 25. Kg2 {[%clk 0:01:34]}  Rd2 {[%clk 0:01:43]} 26. Qc7 {[%clk 0:01:10]}  Bd8 {[%clk 0:01:37]} 27. Qc6 {[%clk 0:01:06]}  Bb6 {[%clk 0:01:34]} 28. Rhf1 {[%clk 0:01:03]}  Bxf1+ {[%clk 0:01:33]} 29. Rxf1 {[%clk 0:01:03]}  axb3 {[%clk 0:01:33]} 30. axb3 {[%clk 0:01:01]}  Qd4 {[%clk 0:01:24]} 31. Bc8 {[%clk 0:00:48]}  Rxf2+ {[%clk 0:01:21]} 32. Kh3 {[%clk 0:00:47]}  g6 {[%clk 0:01:03]} 33. Rc1 {[%clk 0:00:42]}  Kg7 {[%clk 0:00:51]} 34. Rc4 {[%clk 0:00:36]}  Qe3 {[%clk 0:00:49]} 35. Qxd6 {[%clk 0:00:34]}  Qh6+ {[%clk 0:00:48]} 36. Kg4 {[%clk 0:00:34]}  Qh5# {[%clk 0:00:47]} 0-1


[Site "https://www.chess.com"]

[Event "Titled Tuesday Blitz November 08 Early 2022"]
[White "Turzo, Attila"]
[Black "Farmani Anosheh, Armin"]
[WhiteFideId "704954"]
[BlackFideId "24613240"]
[WhiteElo "2506"]
[BlackElo "2289"]
[Result "1-0"]
[Round "08"]
[TimeControl "180+1"]
[Date "2022.11.09"]
[WhiteClock "0:02:21"]
[BlackClock "0:00:55"]

1. d4 {[%clk 0:03:00]}  Nf6 {[%clk 0:02:59]} 2. c4 {[%clk 0:03:01]}  e6 {[%clk 0:02:59]} 3. Nf3 {[%clk 0:03:00]}  d5 {[%clk 0:02:58]} 4. Nc3 {[%clk 0:02:59]}  Bb4 {[%clk 0:02:58]} 5. cxd5 {[%clk 0:02:58]}  exd5 {[%clk 0:02:59]} 6. Bg5 {[%clk 0:02:57]}  h6 {[%clk 0:02:52]} 7. Bxf6 {[%clk 0:02:56]}  Qxf6 {[%clk 0:02:49]} 8. Qa4+ {[%clk 0:02:54]}  Nc6 {[%clk 0:02:49]} 9. e3 {[%clk 0:02:54]}  O-O {[%clk 0:02:38]} 10. Bb5 {[%clk 0:02:52]}  a5 {[%clk 0:01:11]} 11. a3 {[%clk 0:02:44]}  Bxc3+ {[%clk 0:01:07]} 12. bxc3 {[%clk 0:02:44]}  Ne7 {[%clk 0:01:03]} 13. O-O {[%clk 0:02:42]}  c6 {[%clk 0:01:01]} 14. Be2 {[%clk 0:02:31]}  b5 {[%clk 0:01:00]} 15. Qd1 {[%clk 0:02:28]}  Bg4 {[%clk 0:01:00]} 16. Ne5 {[%clk 0:02:25]}  Bxe2 {[%clk 0:01:00]} 17. Qxe2 {[%clk 0:02:26]}  Rfb8 {[%clk 0:00:55]} 18. Nd7 {[%clk 0:02:21]} 1-0


[Site "https://www.chess.com"]

[Event "Titled Tuesday Blitz November 08 Early 2022"]
[White "Urazayev, Arystanbek"]
[Black "Cabezas Solano, David Alejandro"]
[WhiteFideId "13709810"]
[BlackFideId "6507522"]
[WhiteElo "2441"]
[BlackElo "2035"]
[Result "1-0"]
[Round "08"]
[TimeControl "180+1"]
[Date "2022.11.09"]
[WhiteClock "0:01:49"]
[BlackClock "0:00:29"]

1. d4 {[%clk 0:03:00]}  Nf6 {[%clk 0:02:58]} 2. c4 {[%clk 0:03:01]}  e6 {[%clk 0:02:59]} 3. Nf3 {[%clk 0:03:00]}  d5 {[%clk 0:02:58]} 4. Nc3 {[%clk 0:03:01]}  Be7 {[%clk 0:02:59]} 5. Bf4 {[%clk 0:03:00]}  O-O {[%clk 0:02:59]} 6. e3 {[%clk 0:03:01]}  Nbd7 {[%clk 0:02:52]} 7. Be2 {[%clk 0:03:00]}  c5 {[%clk 0:02:45]} 8. cxd5 {[%clk 0:02:59]}  Nxd5 {[%clk 0:02:40]} 9. Nxd5 {[%clk 0:02:59]}  exd5 {[%clk 0:02:41]} 10. O-O {[%clk 0:02:59]}  Nf6 {[%clk 0:02:23]} 11. dxc5 {[%clk 0:02:59]}  Bxc5 {[%clk 0:02:23]} 12. Rc1 {[%clk 0:02:59]}  Bb6 {[%clk 0:02:21]} 13. Nd4 {[%clk 0:02:51]}  Be6 {[%clk 0:02:15]} 14. Bf3 {[%clk 0:02:43]}  Qd7 {[%clk 0:02:12]} 15. h3 {[%clk 0:02:40]}  Rac8 {[%clk 0:02:09]} 16. Qd3 {[%clk 0:02:40]}  h6 {[%clk 0:02:00]} 17. Be5 {[%clk 0:02:40]}  Qe7 {[%clk 0:01:45]} 18. Nf5 {[%clk 0:02:34]}  Bxf5 {[%clk 0:01:41]} 19. Qxf5 {[%clk 0:02:35]}  Qe6 {[%clk 0:01:21]} 20. Qf4 {[%clk 0:02:21]}  Nd7 {[%clk 0:01:09]} 21. Bc3 {[%clk 0:02:21]}  Nc5 {[%clk 0:01:03]} 22. Qd4 {[%clk 0:02:04]}  Qg6 {[%clk 0:01:02]} 23. Bh5 {[%clk 0:01:58]}  Qg5 {[%clk 0:00:37]} 24. h4 {[%clk 0:01:54]}  Qf6 {[%clk 0:00:34]} 25. Qxf6 {[%clk 0:01:53]}  gxf6 {[%clk 0:00:35]} 26. Bxf6 {[%clk 0:01:54]}  Nd3 {[%clk 0:00:32]} 27. Rcd1 {[%clk 0:01:53]}  Nb4 {[%clk 0:00:30]} 28. a3 {[%clk 0:01:53]}  Rc6 {[%clk 0:00:29]} 29. Be7 {[%clk 0:01:49]} 1-0


[Site "https://www.chess.com"]

[Event "Titled Tuesday Blitz November 08 Early 2022"]
[White "Wieczorek, Oskar"]
[Black "Liang, Awonder"]
[WhiteFideId "1133950"]
[BlackFideId "2056437"]
[WhiteElo "2404"]
[BlackElo "2508"]
[Result "1-0"]
[Round "08"]
[TimeControl "180+1"]
[Date "2022.11.08"]
[WhiteClock "0:00:16"]
[BlackClock "0:00:20"]

1. e4 {[%clk 0:03:00]}  a5 {[%clk 0:03:00]} 2. d4 {[%clk 0:03:00]}  a4 {[%clk 0:03:01]} 3. Bd3 {[%clk 0:03:01]}  e6 {[%clk 0:03:00]} 4. Nf3 {[%clk 0:03:01]}  b6 {[%clk 0:03:01]} 5. O-O {[%clk 0:03:02]}  Bb7 {[%clk 0:03:00]} 6. Re1 {[%clk 0:03:02]}  Ne7 {[%clk 0:03:00]} 7. c4 {[%clk 0:03:02]}  d6 {[%clk 0:03:00]} 8. Nc3 {[%clk 0:03:03]}  a3 {[%clk 0:02:59]} 9. b3 {[%clk 0:02:58]}  Nd7 {[%clk 0:02:59]} 10. Nb5 {[%clk 0:02:56]}  g6 {[%clk 0:02:59]} 11. Nxa3 {[%clk 0:02:54]}  Bg7 {[%clk 0:02:58]} 12. Nb5 {[%clk 0:02:51]}  h6 {[%clk 0:02:57]} 13. Bb2 {[%clk 0:02:50]}  g5 {[%clk 0:02:56]} 14. Qc2 {[%clk 0:02:34]}  Ng6 {[%clk 0:02:54]} 15. e5 {[%clk 0:02:08]}  Bxf3 {[%clk 0:02:49]} 16. exd6 {[%clk 0:02:06]}  Nh4 {[%clk 0:02:33]} 17. dxc7 {[%clk 0:01:17]}  Qe7 {[%clk 0:02:30]} 18. Ba3 {[%clk 0:01:13]}  Qxa3 {[%clk 0:02:02]} 19. Nxa3 {[%clk 0:01:12]}  Bxg2 {[%clk 0:02:03]} 20. Be4 {[%clk 0:00:53]}  Bxe4 {[%clk 0:01:57]} 21. Qxe4 {[%clk 0:00:53]}  O-O {[%clk 0:01:57]} 22. Nb5 {[%clk 0:00:51]}  Nf6 {[%clk 0:01:57]} 23. Qc6 {[%clk 0:00:50]}  g4 {[%clk 0:01:47]} 24. Re3 {[%clk 0:00:47]}  Nf5 {[%clk 0:01:46]} 25. Rd1 {[%clk 0:00:36]}  Ne7 {[%clk 0:01:45]} 26. Qb7 {[%clk 0:00:34]}  Rxa2 {[%clk 0:01:42]} 27. Na7 {[%clk 0:00:25]}  Ne8 {[%clk 0:01:24]} 28. c8=Q {[%clk 0:00:24]}  Rxa7 {[%clk 0:01:25]} 29. Qxa7 {[%clk 0:00:22]}  Nxc8 {[%clk 0:01:25]} 30. Qd7 {[%clk 0:00:22]}  Nf6 {[%clk 0:01:22]} 31. Qc6 {[%clk 0:00:22]}  Ne7 {[%clk 0:01:22]} 32. Qxb6 {[%clk 0:00:22]}  Nf5 {[%clk 0:01:23]} 33. c5 {[%clk 0:00:20]}  Nd5 {[%clk 0:01:22]} 34. Qb7 {[%clk 0:00:20]}  Bxd4 {[%clk 0:01:19]} 35. Rxd4 {[%clk 0:00:20]}  Nxd4 {[%clk 0:01:20]} 36. Rd3 {[%clk 0:00:19]}  Nf3+ {[%clk 0:01:18]} 37. Rxf3 {[%clk 0:00:19]}  gxf3 {[%clk 0:01:18]} 38. c6 {[%clk 0:00:19]}  Rd8 {[%clk 0:01:15]} 39. h3 {[%clk 0:00:17]}  Rf8 {[%clk 0:00:32]} 40. b4 {[%clk 0:00:17]}  Kh7 {[%clk 0:00:31]} 41. b5 {[%clk 0:00:18]}  Kg6 {[%clk 0:00:27]} 42. b6 {[%clk 0:00:17]}  Kf6 {[%clk 0:00:24]} 43. c7 {[%clk 0:00:17]}  Rg8+ {[%clk 0:00:24]} 44. Kf1 {[%clk 0:00:17]}  Ne7 {[%clk 0:00:20]} 45. Qxf3+ {[%clk 0:00:16]} 1-0


[Site "https://www.chess.com"]

[Event "Titled Tuesday Blitz November 08 Early 2022"]
[White "Zhigalko, Sergei"]
[Black "Harshavardhan G B"]
[WhiteFideId "13502956"]
[BlackFideId "25059009"]
[WhiteElo "2662"]
[BlackElo "2333"]
[Result "1-0"]
[Round "08"]
[TimeControl "180+1"]
[Date "2022.11.08"]
[WhiteClock "0:01:02"]
[BlackClock "0:02:09"]

1. e4 {[%clk 0:03:00]}  c5 {[%clk 0:02:58]} 2. Nf3 {[%clk 0:02:59]}  d6 {[%clk 0:02:58]} 3. d4 {[%clk 0:03:00]}  cxd4 {[%clk 0:02:59]} 4. Qxd4 {[%clk 0:03:00]}  a6 {[%clk 0:02:58]} 5. Bc4 {[%clk 0:03:01]}  Nc6 {[%clk 0:02:57]} 6. Qd3 {[%clk 0:03:01]}  Nf6 {[%clk 0:02:56]} 7. Nc3 {[%clk 0:03:00]}  g6 {[%clk 0:02:54]} 8. Bg5 {[%clk 0:03:00]}  Bg7 {[%clk 0:02:54]} 9. Bb3 {[%clk 0:03:01]}  O-O {[%clk 0:02:54]} 10. O-O-O {[%clk 0:03:01]}  Qa5 {[%clk 0:02:48]} 11. Kb1 {[%clk 0:02:57]}  b5 {[%clk 0:02:45]} 12. h4 {[%clk 0:02:31]}  h5 {[%clk 0:02:44]} 13. e5 {[%clk 0:01:26]}  dxe5 {[%clk 0:02:29]} 14. Qxg6 {[%clk 0:01:07]}  Bg4 {[%clk 0:02:15]} 15. Bh6 {[%clk 0:01:04]}  Ne8 {[%clk 0:02:09]} 16. Ng5 {[%clk 0:01:02]} 1-0


[Site "https://www.chess.com"]

[Event "Titled Tuesday Blitz November 08 Early 2022"]
[White "Aaditya Dhingra"]
[Black "Matveeva, Olga"]
[WhiteFideId "25678191"]
[BlackFideId "24107018"]
[WhiteElo "2054"]
[BlackElo "2055"]
[Result "1-0"]
[Round "09"]
[TimeControl "180+1"]
[Date "2022.11.09"]
[WhiteClock "0:01:06"]
[BlackClock "0:00:18"]

1. e4 {[%clk 0:02:58]}  c6 {[%clk 0:03:00]} 2. d4 {[%clk 0:02:57]}  d5 {[%clk 0:03:00]} 3. Nc3 {[%clk 0:02:58]}  dxe4 {[%clk 0:03:00]} 4. Nxe4 {[%clk 0:02:59]}  Nf6 {[%clk 0:03:00]} 5. Nxf6+ {[%clk 0:03:00]}  exf6 {[%clk 0:03:01]} 6. c3 {[%clk 0:03:01]}  Bd6 {[%clk 0:03:01]} 7. Bd3 {[%clk 0:03:01]}  O-O {[%clk 0:03:02]} 8. Ne2 {[%clk 0:03:01]}  Re8 {[%clk 0:03:00]} 9. O-O {[%clk 0:03:01]}  Nd7 {[%clk 0:03:00]} 10. Ng3 {[%clk 0:02:59]}  Nf8 {[%clk 0:02:54]} 11. f4 {[%clk 0:02:59]}  c5 {[%clk 0:02:42]} 12. f5 {[%clk 0:02:50]}  cxd4 {[%clk 0:02:37]} 13. Nh5 {[%clk 0:02:30]}  dxc3 {[%clk 0:01:57]} 14. bxc3 {[%clk 0:01:59]}  Bc5+ {[%clk 0:01:42]} 15. Kh1 {[%clk 0:01:58]}  b6 {[%clk 0:01:33]} 16. Qf3 {[%clk 0:01:49]}  Qd7 {[%clk 0:00:54]} 17. Qg3 {[%clk 0:01:43]}  Ng6 {[%clk 0:00:52]} 18. fxg6 {[%clk 0:01:19]}  hxg6 {[%clk 0:00:53]} 19. Bxg6 {[%clk 0:01:11]}  fxg6 {[%clk 0:00:46]} 20. Qxg6 {[%clk 0:01:10]}  Qf7 {[%clk 0:00:26]} 21. Nxf6+ {[%clk 0:01:06]}  Kf8 {[%clk 0:00:18]} 22. Nh7+ {[%clk 0:01:06]} 1-0


[Site "https://www.chess.com"]

[Event "Titled Tuesday Blitz November 08 Early 2022"]
[White "Alhadad, Mahmoud"]
[Black "Rosh Jain"]
[WhiteFideId "11501863"]
[BlackFideId "25789465"]
[WhiteElo "1955"]
[BlackElo "2233"]
[Result "0-1"]
[Round "09"]
[TimeControl "180+1"]
[Date "2022.11.09"]
[WhiteClock "0:00:19"]
[BlackClock "0:01:12"]

1. e4 {[%clk 0:03:00]}  c5 {[%clk 0:02:54]} 2. Nc3 {[%clk 0:03:00]}  Nc6 {[%clk 0:02:48]} 3. Bb5 {[%clk 0:03:00]}  Nd4 {[%clk 0:02:46]} 4. Nf3 {[%clk 0:03:01]}  g6 {[%clk 0:02:46]} 5. Nxd4 {[%clk 0:03:00]}  cxd4 {[%clk 0:02:44]} 6. Ne2 {[%clk 0:03:00]}  Bg7 {[%clk 0:02:44]} 7. O-O {[%clk 0:03:00]}  e6 {[%clk 0:02:42]} 8. d3 {[%clk 0:02:59]}  Ne7 {[%clk 0:02:41]} 9. f4 {[%clk 0:02:59]}  a6 {[%clk 0:02:40]} 10. Ba4 {[%clk 0:02:58]}  b5 {[%clk 0:02:40]} 11. Bb3 {[%clk 0:02:58]}  Bb7 {[%clk 0:02:40]} 12. Qe1 {[%clk 0:02:57]}  d6 {[%clk 0:02:40]} 13. a3 {[%clk 0:02:49]}  O-O {[%clk 0:02:38]} 14. a4 {[%clk 0:02:49]}  Qb6 {[%clk 0:02:33]} 15. Qf2 {[%clk 0:02:45]}  d5 {[%clk 0:02:30]} 16. e5 {[%clk 0:02:45]}  Nf5 {[%clk 0:02:30]} 17. a5 {[%clk 0:02:23]}  Qa7 {[%clk 0:02:22]} 18. g4 {[%clk 0:02:14]}  Ne3 {[%clk 0:02:21]} 19. Bxe3 {[%clk 0:02:13]}  dxe3 {[%clk 0:02:20]} 20. Qg3 {[%clk 0:02:08]}  d4 {[%clk 0:02:18]} 21. f5 {[%clk 0:02:05]}  exf5 {[%clk 0:02:09]} 22. gxf5 {[%clk 0:02:05]}  Qc5 {[%clk 0:01:59]} 23. fxg6 {[%clk 0:02:00]}  Qc6 {[%clk 0:01:54]} 24. gxf7+ {[%clk 0:01:08]}  Kh8 {[%clk 0:01:53]} 25. Rf3 {[%clk 0:01:07]}  Qxf3 {[%clk 0:01:52]} 26. Qxf3 {[%clk 0:01:07]}  Bxf3 {[%clk 0:01:52]} 27. Nxd4 {[%clk 0:01:07]}  Bh5 {[%clk 0:01:46]} 28. e6 {[%clk 0:00:53]}  Bxd4 {[%clk 0:01:45]} 29. e7 {[%clk 0:00:54]}  e2+ {[%clk 0:01:45]} 30. Kg2 {[%clk 0:00:49]}  Bxb2 {[%clk 0:01:44]} 31. exf8=Q+ {[%clk 0:00:40]}  Rxf8 {[%clk 0:01:42]} 32. Rg1 {[%clk 0:00:37]}  Bd4 {[%clk 0:01:37]} 33. Re1 {[%clk 0:00:36]}  Bc3 {[%clk 0:01:37]} 34. Rg1 {[%clk 0:00:29]}  Bxf7 {[%clk 0:01:31]} 35. Kf2 {[%clk 0:00:25]}  e1=Q+ {[%clk 0:01:22]} 36. Rxe1 {[%clk 0:00:24]}  Bxb3+ {[%clk 0:01:23]} 37. Ke2 {[%clk 0:00:21]}  Re8+ {[%clk 0:01:22]} 38. Kf3 {[%clk 0:00:21]}  Bd5+ {[%clk 0:01:21]} 39. Kf4 {[%clk 0:00:21]}  Rxe1 {[%clk 0:01:20]} 40. Kg5 {[%clk 0:00:21]}  Be5 {[%clk 0:01:19]} 41. Kf5 {[%clk 0:00:20]}  Kg7 {[%clk 0:01:17]} 42. c4 {[%clk 0:00:19]}  bxc4 {[%clk 0:01:15]} 43. dxc4 {[%clk 0:00:20]}  Bxc4 {[%clk 0:01:16]} 44. h4 {[%clk 0:00:19]}  Kf7 {[%clk 0:01:16]} 45. Kg5 {[%clk 0:00:18]}  Be6 {[%clk 0:01:15]} 46. Kh6 {[%clk 0:00:19]}  Bg7+ {[%clk 0:01:14]} 47. Kh5 {[%clk 0:00:19]}  Re5# {[%clk 0:01:12]} 0-1


[Site "https://www.chess.com"]

[Event "Titled Tuesday Blitz November 08 Early 2022"]
[White "Anton Guijarro, David"]
[Black "Bortnyk, Olexandr"]
[WhiteFideId "2285525"]
[BlackFideId "14120828"]
[WhiteElo "2579"]
[BlackElo "2723"]
[Result "0-1"]
[Round "09"]
[TimeControl "180+1"]
[Date "2022.11.08"]
[WhiteClock "0:00:26"]
[BlackClock "0:00:52"]

1. Nf3 {[%clk 0:03:00]}  Nf6 {[%clk 0:02:58]} 2. b3 {[%clk 0:03:01]}  g6 {[%clk 0:02:58]} 3. Bb2 {[%clk 0:03:01]}  Bg7 {[%clk 0:02:59]} 4. g3 {[%clk 0:03:01]}  O-O {[%clk 0:02:59]} 5. Bg2 {[%clk 0:03:01]}  d5 {[%clk 0:02:57]} 6. c4 {[%clk 0:03:01]}  c6 {[%clk 0:02:57]} 7. O-O {[%clk 0:03:00]}  a5 {[%clk 0:02:58]} 8. Nc3 {[%clk 0:03:00]}  Re8 {[%clk 0:02:52]} 9. d4 {[%clk 0:02:56]}  Bf5 {[%clk 0:02:51]} 10. Ne5 {[%clk 0:02:51]}  Ne4 {[%clk 0:02:41]} 11. f4 {[%clk 0:02:32]}  Nxc3 {[%clk 0:02:34]} 12. Bxc3 {[%clk 0:02:31]}  a4 {[%clk 0:02:34]} 13. e3 {[%clk 0:02:22]}  b5 {[%clk 0:02:25]} 14. cxd5 {[%clk 0:02:18]}  cxd5 {[%clk 0:02:25]} 15. Rc1 {[%clk 0:02:02]}  Be4 {[%clk 0:02:13]} 16. Bxe4 {[%clk 0:01:44]}  dxe4 {[%clk 0:02:14]} 17. Bd2 {[%clk 0:01:24]}  f6 {[%clk 0:01:42]} 18. Nc6 {[%clk 0:01:08]}  Qd7 {[%clk 0:01:42]} 19. Nb4 {[%clk 0:01:01]}  Na6 {[%clk 0:01:24]} 20. Nxa6 {[%clk 0:00:59]}  Rxa6 {[%clk 0:01:25]} 21. Qc2 {[%clk 0:00:52]}  f5 {[%clk 0:01:25]} 22. Bb4 {[%clk 0:00:45]}  Bf6 {[%clk 0:01:25]} 23. Qc7 {[%clk 0:00:41]}  Qxc7 {[%clk 0:01:19]} 24. Rxc7 {[%clk 0:00:42]}  axb3 {[%clk 0:01:20]} 25. axb3 {[%clk 0:00:42]}  Ra2 {[%clk 0:01:21]} 26. Rf2 {[%clk 0:00:40]}  Ra1+ {[%clk 0:01:17]} 27. Rf1 {[%clk 0:00:41]}  Rxf1+ {[%clk 0:01:08]} 28. Kxf1 {[%clk 0:00:40]}  Kf7 {[%clk 0:01:09]} 29. Rb7 {[%clk 0:00:36]}  Ra8 {[%clk 0:01:09]} 30. Rxb5 {[%clk 0:00:36]}  Ra2 {[%clk 0:01:07]} 31. h4 {[%clk 0:00:35]}  Kg7 {[%clk 0:00:48]} 32. Rb7 {[%clk 0:00:35]}  Kh6 {[%clk 0:00:48]} 33. Bxe7 {[%clk 0:00:34]}  Bxe7 {[%clk 0:00:49]} 34. Rxe7 {[%clk 0:00:34]}  Kh5 {[%clk 0:00:50]} 35. d5 {[%clk 0:00:28]}  Kg4 {[%clk 0:00:51]} 36. d6 {[%clk 0:00:28]}  Kf3 {[%clk 0:00:51]} 37. Ke1 {[%clk 0:00:26]}  Kxe3 {[%clk 0:00:52]} 38. Kd1 {[%clk 0:00:26]}  Rd2+ {[%clk 0:00:52]} 39. Kc1 {[%clk 0:00:26]}  Rxd6 {[%clk 0:00:53]} 40. Rxh7 {[%clk 0:00:26]}  Kf2 {[%clk 0:00:52]} 0-1


[Site "https://www.chess.com"]

[Event "Titled Tuesday Blitz November 08 Early 2022"]
[White "Avazkhonov, Alikhon"]
[Black "Adnan, Habib"]
[WhiteFideId "14208504"]
[BlackFideId "11202270"]
[WhiteElo "1739"]
[BlackElo "2110"]
[Result "1-0"]
[Round "09"]
[TimeControl "180+1"]
[Date "2022.11.09"]
[WhiteClock "0:01:14"]
[BlackClock "0:00:27"]

1. d4 {[%clk 0:02:56]}  Nf6 {[%clk 0:02:59]} 2. c4 {[%clk 0:02:56]}  g6 {[%clk 0:02:59]} 3. Nc3 {[%clk 0:02:57]}  Bg7 {[%clk 0:03:00]} 4. e4 {[%clk 0:02:57]}  d6 {[%clk 0:03:00]} 5. f3 {[%clk 0:02:58]}  O-O {[%clk 0:03:01]} 6. Be3 {[%clk 0:02:58]}  c5 {[%clk 0:03:00]} 7. dxc5 {[%clk 0:02:58]}  dxc5 {[%clk 0:03:01]} 8. Qxd8 {[%clk 0:02:59]}  Rxd8 {[%clk 0:03:00]} 9. Bxc5 {[%clk 0:02:59]}  Nc6 {[%clk 0:03:00]} 10. Nge2 {[%clk 0:02:55]}  Nd7 {[%clk 0:02:54]} 11. Ba3 {[%clk 0:02:54]}  Nde5 {[%clk 0:02:48]} 12. Nf4 {[%clk 0:02:51]}  Bh6 {[%clk 0:02:37]} 13. Nfd5 {[%clk 0:02:23]}  e6 {[%clk 0:02:26]} 14. Ne7+ {[%clk 0:01:59]}  Nxe7 {[%clk 0:02:19]} 15. Bxe7 {[%clk 0:01:59]}  Rd7 {[%clk 0:02:19]} 16. Bf6 {[%clk 0:02:00]}  Bd2+ {[%clk 0:02:12]} 17. Kf2 {[%clk 0:01:59]}  Bxc3 {[%clk 0:02:08]} 18. bxc3 {[%clk 0:01:58]}  Nc6 {[%clk 0:02:03]} 19. Be2 {[%clk 0:01:56]}  e5 {[%clk 0:02:01]} 20. Rad1 {[%clk 0:01:56]}  Kf8 {[%clk 0:01:56]} 21. Rd5 {[%clk 0:01:53]}  Ke8 {[%clk 0:01:51]} 22. Rhd1 {[%clk 0:01:53]}  b6 {[%clk 0:01:40]} 23. c5 {[%clk 0:01:48]}  Rxd5 {[%clk 0:01:32]} 24. exd5 {[%clk 0:01:47]}  Na5 {[%clk 0:01:28]} 25. Bb5+ {[%clk 0:01:47]}  Bd7 {[%clk 0:01:26]} 26. c6 {[%clk 0:01:46]}  Bf5 {[%clk 0:01:16]} 27. d6 {[%clk 0:01:45]}  Bd7 {[%clk 0:00:43]} 28. cxd7+ {[%clk 0:01:45]}  Kf8 {[%clk 0:00:43]} 29. Re1 {[%clk 0:01:17]}  a6 {[%clk 0:00:40]} 30. Ba4 {[%clk 0:01:04]}  b5 {[%clk 0:00:40]} 31. d8=Q+ {[%clk 0:01:04]}  Rxd8 {[%clk 0:00:39]} 32. Bxd8 {[%clk 0:01:05]}  Nc6 {[%clk 0:00:37]} 33. Be7+ {[%clk 0:01:05]}  Nxe7 {[%clk 0:00:32]} 34. dxe7+ {[%clk 0:01:05]}  Kxe7 {[%clk 0:00:32]} 35. Bxb5 {[%clk 0:01:05]}  axb5 {[%clk 0:00:32]} 36. Rxe5+ {[%clk 0:01:06]}  Kd6 {[%clk 0:00:31]} 37. Rxb5 {[%clk 0:01:07]}  Kc6 {[%clk 0:00:32]} 38. c4 {[%clk 0:01:08]}  f5 {[%clk 0:00:31]} 39. a4 {[%clk 0:01:08]}  Kc7 {[%clk 0:00:25]} 40. a5 {[%clk 0:01:09]}  Kc6 {[%clk 0:00:25]} 41. a6 {[%clk 0:01:10]}  Kd7 {[%clk 0:00:26]} 42. a7 {[%clk 0:01:11]}  Kc7 {[%clk 0:00:26]} 43. a8=Q {[%clk 0:01:11]}  Kd6 {[%clk 0:00:27]} 44. Qa6+ {[%clk 0:01:12]}  Kc7 {[%clk 0:00:27]} 45. Rb7+ {[%clk 0:01:13]}  Kd8 {[%clk 0:00:27]} 46. Qa8# {[%clk 0:01:14]} 1-0


[Site "https://www.chess.com"]

[Event "Titled Tuesday Blitz November 08 Early 2022"]
[White "Baches Garcia, Guillermo"]
[Black "Troltenier, Dirk"]
[WhiteFideId "2209764"]
[BlackFideId "4606400"]
[WhiteElo "2456"]
[BlackElo "2319"]
[Result "0-1"]
[Round "09"]
[TimeControl "180+1"]
[Date "2022.11.09"]
[WhiteClock "0:00:07"]
[BlackClock "0:00:07"]

1. e4 {[%clk 0:03:00]}  e5 {[%clk 0:02:54]} 2. Nf3 {[%clk 0:03:01]}  d6 {[%clk 0:02:53]} 3. d4 {[%clk 0:03:00]}  exd4 {[%clk 0:02:47]} 4. Nxd4 {[%clk 0:02:59]}  Nf6 {[%clk 0:02:48]} 5. f3 {[%clk 0:03:00]}  Be7 {[%clk 0:02:47]} 6. c4 {[%clk 0:03:00]}  O-O {[%clk 0:02:45]} 7. Nc3 {[%clk 0:03:00]}  c6 {[%clk 0:02:45]} 8. Be3 {[%clk 0:03:00]}  d5 {[%clk 0:02:43]} 9. cxd5 {[%clk 0:02:51]}  cxd5 {[%clk 0:02:42]} 10. e5 {[%clk 0:02:51]}  Ne8 {[%clk 0:02:42]} 11. f4 {[%clk 0:02:26]}  Nc6 {[%clk 0:02:40]} 12. Bb5 {[%clk 0:02:21]}  Nxd4 {[%clk 0:02:08]} 13. Qxd4 {[%clk 0:02:18]}  Nc7 {[%clk 0:02:06]} 14. O-O {[%clk 0:02:06]}  Nxb5 {[%clk 0:01:21]} 15. Nxb5 {[%clk 0:02:05]}  f6 {[%clk 0:01:21]} 16. Rad1 {[%clk 0:01:41]}  Be6 {[%clk 0:01:19]} 17. f5 {[%clk 0:01:23]}  fxe5 {[%clk 0:01:18]} 18. Qxe5 {[%clk 0:01:24]}  Bf7 {[%clk 0:01:18]} 19. Qc7 {[%clk 0:01:12]}  a6 {[%clk 0:01:05]} 20. Qxd8 {[%clk 0:01:06]}  Raxd8 {[%clk 0:01:06]} 21. Nd4 {[%clk 0:01:02]}  Bf6 {[%clk 0:01:03]} 22. Rd2 {[%clk 0:00:54]}  Rfe8 {[%clk 0:01:03]} 23. Bf2 {[%clk 0:00:54]}  Re4 {[%clk 0:01:02]} 24. Re1 {[%clk 0:00:49]}  Rde8 {[%clk 0:01:02]} 25. Rxe4 {[%clk 0:00:49]}  dxe4 {[%clk 0:00:56]} 26. Be3 {[%clk 0:00:37]}  Bxa2 {[%clk 0:00:51]} 27. b3 {[%clk 0:00:30]}  Bb1 {[%clk 0:00:50]} 28. Ne6 {[%clk 0:00:23]}  Bd3 {[%clk 0:00:47]} 29. g4 {[%clk 0:00:23]}  Bc3 {[%clk 0:00:42]} 30. Ra2 {[%clk 0:00:21]}  Rc8 {[%clk 0:00:34]} 31. Ra4 {[%clk 0:00:18]}  Be5 {[%clk 0:00:24]} 32. Bd4 {[%clk 0:00:17]}  Rc1+ {[%clk 0:00:21]} 33. Kf2 {[%clk 0:00:17]}  Rc2+ {[%clk 0:00:22]} 34. Ke1 {[%clk 0:00:17]}  Bxh2 {[%clk 0:00:20]} 35. Bxg7 {[%clk 0:00:14]}  e3 {[%clk 0:00:10]} 36. Nd4 {[%clk 0:00:07]}  Rc1# {[%clk 0:00:07]} 0-1


[Site "https://www.chess.com"]